Workbook

Sheet UE_Output
A1: =Input!$A$1 -> IT Capital Expenditure | I1: AER draft decision
A2: Output | I2: RRP change
A3: United Energy
A4: Forecast, June $2021 '000 (no escalation)
B5: Check OK: | C5: =SUM(AH10:AH13)=0 -> TRUE
B8: Function Code | C8: Service | F8: 2021/22 | G8: 2021/22 | H8: 2021/22 | I8: 2022/23 | J8: 2022/23 | K8: 2022/23 | L8: 2023/24 | M8: 2023/24 | N8: 2023/24 | O8: 2024/25 | P8: 2024/25 | Q8: 2024/25 | R8: 2025/26 | S8: 2025/26 | T8: 2025/26 | V8: Total | AB8: Total | AD8: Total
F9: Labour | G9: Materials | H9: Contracts | I9: Labour | J9: Materials | K9: Contracts | L9: Labour | M9: Materials | N9: Contracts | O9: Labour | P9: Materials | Q9: Contracts | R9: Labour | S9: Materials | T9: Contracts | V9: 2021/22 | W9: 2022/23 | X9: 2023/24 | Y9: 2024/25 | Z9: 2025/26 | AD9: Labour | AE9: Materials | AF9: Contracts
B10: 200 | C10: Total SCS | F10: =Input!F18 -> 33713.91944 | G10: =Input!G18 -> 9359.747542 | H10: =Input!H18 -> 11114.49513 | I10: =Input!I18 -> 23849.19089 | J10: =Input!J18 -> 7707.782751 | K10: =Input!K18 -> 5352.996934 | L10: =Input!L18 -> 18409.25615 | M10: =Input!M18 -> 8142.859976 | N10: =Input!N18 -> 9223.830066 | O10: =Input!O18 -> 13454.59374 | P10: =Input!P18 -> 9938.345226 | Q10: =Input!Q18 -> 9138.894186 | R10: =Input!R18 -> 12509.31889 | S10: =Input!S18 -> 6377.010775 | T10: =Input!T18 -> 3551.943904 | V10: =SUMIF($F$8:$T$8,V$9,$F10:$T10) -> 54188.1621 | W10: 36909.97058 | X10: 35775.94619 | Y10: 32531.83315 | Z10: 22438.27357 | AB10: =SUM(V10:Z10) -> 181844.1856 | AD10: =SUMIF($F$9:$T$9,AD$9,$F10:$T10) -> 101936.2791 | AE10: =SUMIF($F$9:$T$9,AE$9,$F10:$T10) -> 41525.74627 | AF10: =SUMIF($F$9:$T$9,AF$9,$F10:$T10) -> 38382.16022 | AH10: =AB10-SUM(Input!F18:T18) -> 0
B11: 205 | C11: Total Metering | F11: =Input!F35 -> 543 | G11: =Input!G35 -> 459.5 | H11: =Input!H35 -> 547.5 | I11: =Input!I35 -> 0 | J11: =Input!J35 -> 0 | K11: =Input!K35 -> 0 | L11: =Input!L35 -> 50 | M11: =Input!M35 -> 25 | N11: =Input!N35 -> 25 | O11: =Input!O35 -> 0 | P11: =Input!P35 -> 0 | Q11: =Input!Q35 -> 0 | R11: =Input!R35 -> 375 | S11: =Input!S35 -> 187.5 | T11: =Input!T35 -> 187.5 | V11: 1550 | W11: 0 | X11: 100 | Y11: 0 | Z11: 750 | AB11: =SUM(V11:Z11) -> 2400 | AD11: =AD10/SUM($AD10:$AF10) -> 0.560569362 | AE11: =AE10/SUM($AD10:$AF10) -> 0.2283589444 | AF11: =AF10/SUM($AD10:$AF10) -> 0.2110716935 | AH11: =AB11-SUM(Input!F35:T35) -> 0
AH12: =SUM(AD10:AF10)-SUM(V10:Z10) -> 0
C15: Revised proposal (before real escalation)
D16: 2021/22 | E16: 2022/23 | F16: 2023/24 | G16: 2024/25 | H16: 2025/26
C17: ICT | D17: =SUMPRODUCT((Input!$F$10:$T$18)*($C17=Input!$D$10:$D$18)*(D$16=Input!$F$22:$T$22))/1000 -> 50.0777501 | E17: =SUMPRODUCT((Input!$F$10:$T$18)*($C17=Input!$D$10:$D$18)*(E$16=Input!$F$22:$T$22))/1000 -> 30.35955917 | F17: =SUMPRODUCT((Input!$F$10:$T$18)*($C17=Input!$D$10:$D$18)*(F$16=Input!$F$22:$T$22))/1000 -> 30.14226812 | G17: =SUMPRODUCT((Input!$F$10:$T$18)*($C17=Input!$D$10:$D$18)*(G$16=Input!$F$22:$T$22))/1000 -> 31.25925658 | H17: =SUMPRODUCT((Input!$F$10:$T$18)*($C17=Input!$D$10:$D$18)*(H$16=Input!$F$22:$T$22))/1000 -> 20.6045013 | I17: =IFERROR(SUM(D17:H17),"") -> 162.4433353
C18: DER | D18: =SUMPRODUCT((Input!$F$10:$T$18)*($C18=Input!$D$10:$D$18)*(D$16=Input!$F$22:$T$22))/1000 -> 4.110412002 | E18: =SUMPRODUCT((Input!$F$10:$T$18)*($C18=Input!$D$10:$D$18)*(E$16=Input!$F$22:$T$22))/1000 -> 6.550411409 | F18: =SUMPRODUCT((Input!$F$10:$T$18)*($C18=Input!$D$10:$D$18)*(F$16=Input!$F$22:$T$22))/1000 -> 5.633678077 | G18: =SUMPRODUCT((Input!$F$10:$T$18)*($C18=Input!$D$10:$D$18)*(G$16=Input!$F$22:$T$22))/1000 -> 1.272576575 | H18: =SUMPRODUCT((Input!$F$10:$T$18)*($C18=Input!$D$10:$D$18)*(H$16=Input!$F$22:$T$22))/1000 -> 1.833772271 | I18: =IFERROR(SUM(D18:H18),"") -> 19.40085033
D21: 2021/22 | E21: 2022/23 | F21: 2023/24 | G21: 2024/25 | H21: 2025/26
C22: Recurrent | D22: =SUMPRODUCT((Input!$F$10:$T$18)*($C22=Input!$B$10:$B$18)*(D$16=Input!$F$22:$T$22))/1000 -> 26.26209423 | E22: =SUMPRODUCT((Input!$F$10:$T$18)*($C22=Input!$B$10:$B$18)*(E$16=Input!$F$22:$T$22))/1000 -> 20.64133602 | F22: =SUMPRODUCT((Input!$F$10:$T$18)*($C22=Input!$B$10:$B$18)*(F$16=Input!$F$22:$T$22))/1000 -> 15.62794315 | G22: =SUMPRODUCT((Input!$F$10:$T$18)*($C22=Input!$B$10:$B$18)*(G$16=Input!$F$22:$T$22))/1000 -> 21.44411818 | H22: =SUMPRODUCT((Input!$F$10:$T$18)*($C22=Input!$B$10:$B$18)*(H$16=Input!$F$22:$T$22))/1000 -> 19.2909336 | I22: =IFERROR(SUM(D22:H22),"") -> 103.2664252
C23: Non-recurrent | D23: =SUMPRODUCT((Input!$F$10:$T$18)*($C23=Input!$B$10:$B$18)*(D$16=Input!$F$22:$T$22))/1000-D24 -> 23.81565587 | E23: =SUMPRODUCT((Input!$F$10:$T$18)*($C23=Input!$B$10:$B$18)*(E$16=Input!$F$22:$T$22))/1000-E24 -> 9.718223145 | F23: =SUMPRODUCT((Input!$F$10:$T$18)*($C23=Input!$B$10:$B$18)*(F$16=Input!$F$22:$T$22))/1000-F24 -> 14.51432497 | G23: =SUMPRODUCT((Input!$F$10:$T$18)*($C23=Input!$B$10:$B$18)*(G$16=Input!$F$22:$T$22))/1000-G24 -> 9.815138401 | H23: =SUMPRODUCT((Input!$F$10:$T$18)*($C23=Input!$B$10:$B$18)*(H$16=Input!$F$22:$T$22))/1000-H24 -> 1.313567701 | I23: =IFERROR(SUM(D23:H23),"") -> 59.17691009
C24: DER | D24: =D18 -> 4.110412002 | E24: =E18 -> 6.550411409 | F24: 5.633678077 | G24: 1.272576575 | H24: 1.833772271 | I24: =IFERROR(SUM(D24:H24),"") -> 19.40085033

Sheet Input
A1: IT Capital Expenditure | C1: AER draft decision
A2: Summary | C2: RRP change
A3: Linked data
A4: Forecast, June $2021 '000 (no escalation)
A7: Standard control services
F8: 2021/22 UE SCS | I8: 2022/23 UE SCS | L8: 2023/24 UE SCS | O8: 2024/25 UE SCS | R8: 2025/26 UE SCS | V8: Total | X8: UE SCS
A9: Project | B9: Recurrent/Non-Recurrent | C9: Category | D9: AER category | F9: Labour | G9: Materials | H9: Contracts | I9: Labour | J9: Materials | K9: Contracts | L9: Labour | M9: Materials | N9: Contracts | O9: Labour | P9: Materials | Q9: Contracts | R9: Labour | S9: Materials | T9: Contracts | V9: 2021/22 - 25/26 | X9: 2021/22 | Y9: 2022/23 | Z9: 2023/24 | AA9: 2024/25 | AB9: 2025/26
A10: Recurrent programs | B10: Recurrent | D10: ICT | F10: 12837.39168 | G10: 7184.154558 | H10: 6240.547987 | I10: 11673.84845 | J10: 5348.21488 | K10: 3619.272695 | L10: 8595.39252 | M10: 4182.050556 | N10: 2850.500071 | O10: 8759.546207 | P10: 8336.380977 | Q10: 4348.190991 | R10: 11237.61629 | S10: 4969.797989 | T10: 3083.519326 | V10: =SUM(F10:T10) -> 103266.4252 | X10: =SUMIF($F$22:$T$22,X$9,$E10:$S10) -> 20021.54624 | Y10: =SUMIF($F$22:$T$22,Y$9,$E10:$S10) -> 23262.61131 | Z10: 16396.71577 | AA10: 19946.42726 | AB10: 20555.60527
A11: Digital network | B11: Non-recurrent | C11: New or expanded capabilities | D11: DER | F11: 3453.345852 | G11: 657.0661503 | H11: 0 | I11: 4983.343967 | J11: 1567.067442 | K11: 0 | L11: 4068.730203 | M11: 1564.947874 | N11: 0 | O11: 650.8365623 | P11: 621.7400132 | Q11: 0 | R11: 1021.271117 | S11: 812.5011536 | T11: 0 | V11: =SUM(F11:T11) -> 19400.85033 | X11: 4110.412002 | Y11: =SUMIF($F$22:$T$22,Y$9,$E11:$S11) -> 6550.411409 | Z11: 5633.678077 | AA11: 1272.576575 | AB11: 1833.772271
A12: 5 Minute Settlements | B12: Non-recurrent | C12: Complying new obligations | D12: ICT | F12: 9916.753211 | G12: 238.434469 | H12: 4097.655275 | I12: 2906.634562 | J12: 111.2148046 | K12: 0 | L12: 0 | M12: 118.0959829 | N12: 0 | O12: 0 | P12: 137.4603582 | Q12: 0 | R12: 0 | S12: 229.0861133 | T12: 0 | V12: 17755.33478 | X12: 10155.18768 | Y12: 7115.504641 | Z12: 118.0959829 | AA12: 137.4603582 | AB12: 229.0861133
A13: SAP S/4HANA | B13: Non-recurrent | C13: Maintaining existing services | D13: ICT | F13: 0 | G13: 0 | H13: 0 | I13: 2227.241106 | J13: 0 | K13: 1298.68286 | L13: 4136.30491 | M13: 1558.419432 | N13: 5168.757784 | O13: 3690.856689 | P13: 0 | Q13: 4467.46904 | R13: 0 | S13: 0 | T13: 0 | V13: 22547.73182 | X13: 0 | Y13: 2227.241106 | Z13: 6993.407203 | AA13: 8859.614473 | AB13: 4467.46904
A14: Cyber security | B14: Non-recurrent | C14: New or expanded capabilities | D14: ICT | F14: 383.3366312 | G14: 783.7103519 | H14: 776.2918631 | I14: 187.297501 | J14: 411.7261281 | K14: 435.0413786 | L14: 145.693821 | M14: 304.264019 | N14: 282.1675202 | O14: 167.3698239 | P14: 289.321063 | Q14: 323.2341546 | R14: 250.4314901 | S14: 365.6255191 | T14: 468.4245781 | V14: 5573.935843 | X14: 1167.046983 | Y14: 1375.315492 | Z14: 884.9992185 | AA14: 738.8584071 | AB14: 939.2911638
A15: Customer Enablement | B15: Non-recurrent | C15: New or expanded capabilities | D15: ICT | F15: =[1]Output_UE!F$12 -> 7123.092061 | G15: =[1]Output_UE!G$12 -> 496.3820126 | H15: =[1]Output_UE!H$12 -> 0 | I15: =[1]Output_UE!I$12 -> 850.0242507 | J15: =[1]Output_UE!J$12 -> 38.95832315 | K15: =[1]Output_UE!K$12 -> 0 | L15: =[1]Output_UE!L$12 -> 80.93202051 | M15: =[1]Output_UE!M$12 -> 0 | N15: =[1]Output_UE!N$12 -> 0 | O15: =[1]Output_UE!O$12 -> 0 | P15: =[1]Output_UE!P$12 -> 0 | Q15: =[1]Output_UE!Q$12 -> 0 | R15: =[1]Output_UE!R$12 -> 0 | S15: =[1]Output_UE!S$12 -> 0 | T15: =[1]Output_UE!T$12 -> 0 | V15: 8589.388668 | X15: 7619.474074 | Y15: 888.9825739 | Z15: 80.93202051 | AA15: 0 | AB15: 0
A16: Intelligent engineering | B16: Non-recurrent | C16: New or expanded capabilities | D16: ICT | F16: 0 | G16: 0 | H16: 0 | I16: 1020.801059 | J16: 230.6011728 | K16: 0 | L16: 1382.202676 | M16: 415.0821111 | N16: 922.4046913 | O16: 185.9844579 | P16: 553.4428148 | Q16: 0 | R16: 0 | S16: 0 | T16: 0 | V16: 4710.518983 | X16: 0 | Y16: 1251.402232 | Z16: 1797.284787 | AA16: 1661.831964 | AB16: 0
X17: 0 | Y17: 0 | Z17: 0 | AA17: 0 | AB17: 0
F18: =SUM(F10:F17) -> 33713.91944 | G18: 9359.747542 | H18: 11114.49513 | I18: 23849.19089 | J18: 7707.782751 | K18: 5352.996934 | L18: 18409.25615 | M18: 8142.859976 | N18: 9223.830066 | O18: 13454.59374 | P18: 9938.345226 | Q18: 9138.894186 | R18: 12509.31889 | S18: 6377.010775 | T18: 3551.943904 | V18: =SUM(V10:V17) -> 181844.1856 | X18: 43073.66698 | Y18: 42671.46877 | Z18: 31905.11306 | AA18: 32616.76903 | AB18: 28025.22385 | AD18: =SUM(F18:T18)-V18 -> 0 | AE18: =SUM(F18:T18)-UE_Output!AB10 -> 0
A21: SCS summary
F22: 2021/22 | G22: 2021/22 | H22: 2021/22 | I22: 2022/23 | J22: 2022/23 | K22: 2022/23 | L22: 2023/24 | M22: 2023/24 | N22: 2023/24 | O22: 2024/25 | P22: 2024/25 | Q22: 2024/25 | R22: 2025/26 | S22: 2025/26 | T22: 2025/26 | V22: Total | X22: UE SCS
F23: Labour | G23: Materials | H23: Contracts | I23: Labour | J23: Materials | K23: Contracts | L23: Labour | M23: Materials | N23: Contracts | O23: Labour | P23: Materials | Q23: Contracts | R23: Labour | S23: Materials | T23: Contracts | V23: 2021/22 - 25/26 | X23: 2021/22 | Y23: 2022/23 | Z23: 2023/24 | AA23: 2024/25 | AB23: 2025/26
A24: Recurrent | B24: Maintaining existing services | F24: =SUMIF($B$10:$B$17, $A24,F$10:F$17) -> 12837.39168 | G24: 7184.154558 | H24: 6240.547987 | I24: 11673.84845 | J24: 5348.21488 | K24: 3619.272695 | L24: 8595.39252 | M24: 4182.050556 | N24: 2850.500071 | O24: 8759.546207 | P24: 8336.380977 | Q24: 4348.190991 | R24: 11237.61629 | S24: 4969.797989 | T24: 3083.519326 | V24: =SUM(F24:T24) -> 103266.4252 | X24: =SUMIF($F$22:$T$22,X$9,$E24:$S24) -> 20021.54624 | Y24: 23262.61131 | Z24: 16396.71577 | AA24: 19946.42726 | AB24: 20555.60527
A25: Non-Recurrent | B25: Maintaining existing services | F25: 20876.52775 | G25: 2175.592984 | H25: 4873.947138 | I25: 12175.34244 | J25: 2359.567871 | K25: 1733.724239 | L25: 9813.86363 | M25: 3960.80942 | N25: 6373.329996 | O25: 4695.047533 | P25: 1601.964249 | Q25: 4790.703194 | R25: 1271.702607 | S25: 1407.212786 | T25: 468.4245781 | V25: 78577.76042 | X25: 23052.12074 | Y25: 19408.85745 | Z25: 15508.39729 | AA25: 12670.34178 | AB25: 7469.618588
A26: Total | F26: =SUM(F24:F25) -> 33713.91944 | G26: 9359.747542 | H26: 11114.49513 | I26: 23849.19089 | J26: 7707.782751 | K26: 5352.996934 | L26: 18409.25615 | M26: 8142.859976 | N26: 9223.830066 | O26: 13454.59374 | P26: 9938.345226 | Q26: 9138.894186 | R26: 12509.31889 | S26: 6377.010775 | T26: 3551.943904 | V26: =SUM(V24:V25) -> 181844.1856 | X26: 43073.66698 | Y26: 42671.46877 | Z26: 31905.11306 | AA26: 32616.76903 | AB26: 28025.22385 | AD26: =SUM(F26:T26)-V26 -> 0 | AE26: =SUM(F26:T26)-UE_Output!AB10 -> 0
A27: Check | F27: =SUM(F24:F25)-F18 -> 0 | G27: 0 | H27: 0 | I27: 0 | J27: 0 | K27: 0 | L27: 0 | M27: 0 | N27: 0 | O27: 0 | P27: 0 | Q27: 0 | R27: 0 | S27: 0 | T27: 0
A30: Metering services
A31: Project | F31: 2021/22 UE AMI | I31: 2022/23 UE AMI | L31: 2023/24 UE AMI | O31: 2024/25 UE AMI | R31: 2025/26 UE AMI | V31: Total | X31: UE AMI
A32: Description | B32: Recurrent/Non-Recurrent | F32: Labour | G32: Materials | H32: Contracts | I32: Labour | J32: Materials | K32: Contracts | L32: Labour | M32: Materials | N32: Contracts | O32: Labour | P32: Materials | Q32: Contracts | R32: Labour | S32: Materials | T32: Contracts | V32: 2021/22 - 25/26 | X32: 2021/22 | Y32: 2022/23 | Z32: 2023/24 | AA32: 2024/25 | AB32: 2025/26
A33: UIQ software upgrades | B33: Recurrent | F33: 543 | G33: 459.5 | H33: 547.5 | I33: 0 | J33: 0 | K33: 0 | L33: 50 | M33: 25 | N33: 25 | O33: 0 | P33: 0 | Q33: 0 | R33: 375 | S33: 187.5 | T33: 187.5 | V33: =SUM(F33:T33) -> 2400 | X33: =SUMIF($F$22:$T$22,X$9,$E33:$S33) -> 1002.5 | Y33: 547.5 | Z33: 75 | AA33: 25 | AB33: 562.5
X34: 0 | Y34: 0 | Z34: 0 | AA34: 0 | AB34: 0
A35: Total | F35: =SUM(F33:F34) -> 543 | G35: 459.5 | H35: 547.5 | I35: 0 | J35: 0 | K35: 0 | L35: 50 | M35: 25 | N35: 25 | O35: 0 | P35: 0 | Q35: 0 | R35: 375 | S35: 187.5 | T35: 187.5 | V35: =SUM(V33:V34) -> 2400 | X35: 1002.5 | Y35: 547.5 | Z35: 75 | AA35: 25 | AB35: 562.5 | AD35: =SUM(F35:T35)-V35 -> 0 | AE35: =SUM(F35:T35)-UE_Output!AB11 -> 0
